Workbook

Sheet 1
A1: Школа | B1: МБОУ "СОШ №2" г. Мензелинск РТ | E1: Отд./корп | F1: с 1-4 классы | I1: День | J1: 2022-10-10
A3: Прием пищи | B3: Раздел | C3: № рец. | D3: Блюдо | E3: Выход, г | F3: Цена | G3: Калорийность | H3: Белки | I3: Жиры | J3: Углеводы
A4: Завтрак | B4: гор.блюдо
B5: гор.напиток
B6: хлеб
A9: Завтрак 2 | B9: фрукты
A12: Горячий | B12: закуска | C12: ='[1] 7-11'!A102 -> №Т/К 41 | D12: ='[1] 7-11'!B102 -> Салат из моркови с сахаром и растительным маслом | E12: ='[1] 7-11'!C102 -> 60 | F12: 5.45 | G12: ='[1] 7-11'!$G$102 -> 74.3 | H12: ='[1] 7-11'!D102 -> 0.5 | I12: ='[1] 7-11'!E102 -> 0 | J12: ='[1] 7-11'!F102 -> 4.3
A13: завтрак: | B13: 1 блюдо | C13: ='[1] 7-11'!A103 -> 62 | D13: ='[1] 7-11'!B103 -> Борщ | E13: ='[1] 7-11'!C103 -> 200 | F13: 32.76 | G13: 107 | H13: ='[1] 7-11'!D103 -> 14.5 | I13: ='[1] 7-11'!E103 -> 14.32 | J13: ='[1] 7-11'!F103 -> 13.1
B14: 2 блюдо
B15: гарнир
B16: сладкое | C16: 54-2гн-2020 | D16: Чай с сахаром | E16: 200 | F16: 1.70 | G16: 27 | H16: 0 | I16: 0 | J16: 6
B17: хлеб бел. | C17: Пром. | D17: Хлеб пшеничный | E17: 30 | F17: 2.04 | G17: 70 | H17: 2 | I17: 0 | J17: 15
B18: хлеб черн. | C18: Пром. | D18: Хлеб ржаной | E18: 20 | F18: 1.22 | G18: 34 | H18: 1 | I18: 0 | J18: 7
B19: Выпечка | C19: ='[1] 7-11'!A105 -> 54-10в | D19: ='[1] 7-11'!B105 -> Булочка ванильная | E19: ='[1] 7-11'!C105 -> 60 | F19: 12.38 | G19: ='[1] 7-11'!$G$105 -> 177 | H19: ='[1] 7-11'!D105 -> 4.68 | I19: ='[1] 7-11'!E105 -> 4.03 | J19: ='[1] 7-11'!F105 -> 30.46
B20: Итого: | E20: ='[1] 7-11'!$C$108 -> 570 | F20: 55.55 | G20: ='[1] 7-11'!$G$108 -> 490 | H20: ='[1] 7-11'!D108 -> 23.48 | I20: ='[1] 7-11'!E108 -> 18.75 | J20: ='[1] 7-11'!F108 -> 75.76
